Cogmind - Beta 15 @@@ ROGUE MODE // 2025.06.08 @ 16:03:05 Player: Mas5akr Result: Destroyed by G-67 Veteran with Field Laser Performance ------------- Evolutions (3) 1500 Regions Visited (11) 2200 Robots Destroyed (111) 555 Value Destroyed (3482) 3482 Prototype IDs (16) 320 Alien Tech Used (0) 0 Bonus (494) 494 TOTAL SCORE: 8551 Bonus ------- High Alert Combat Kills 99 Follower Combat Kills 95 Met Data Miner 300 Cogmind --------- Core Integrity 0/700 Matter 26/300 Energy 100/100 System Corruption 19% Temperature Cool (9) Movement Treading (160) Location -6/Proximity Caves Parts ------- > --- POWER (1) -------- (None) > --- PROPULSION (4) --- Improved Treads > --- UTILITY (6) ------ Improved Utility Shielding (fused) Improved Weapon Shielding > --- WEAPON (2) ------- Assault Cannon > --- INVENTORY (5) ---- Improved Cesium-ion Thruster System Shield Rocket Launcher Peak State ------------ > --- POWER ------------ Micro Nuclear Core > --- PROPULSION ------- VSS Leg VSS Leg VSS Leg VSS Leg > --- UTILITY ---------- Large Storage Unit Advanced Visual Processing Unit Improved Targeting Computer Hardened Medium Armor Plating Improved Light Armor Plating Hacking Suite > --- WEAPON ----------- Assault Cannon Assault Cannon > --- INVENTORY -------- Light Nuclear Core Carbon-fiber Leg Improved Carbon-fiber Leg Medium Storage Unit Improved Sensor Array Improved Signal Interpreter Improved Propulsion Shielding Light Armor Plating Insulated Plating Hacking Suite Gatling Laser Shock Bomb Launcher Grenade Launcher Rocket Launcher Great Maul [Rating: 41] Favorites ----------- Power Ion Engine Engine Ion Engine Power Core Light Nuclear Core Propulsion Light Treads Treads Light Treads Leg VSS Leg Hover Unit Gravmag System Utility Hardened Light Armor Plating Device Improved Heat Sink Storage Large Storage Unit Processor Improved Targeting Computer Hackware Hacking Suite Protection Hardened Light Armor Plating Weapon Heavy Assault Rifle Energy Gun Improved Medium Laser Ballistic Gun Heavy Assault Rifle Ballistic Cannon Assault Cannon Launcher Grenade Launcher Impact Weapon Great Maul Build | -11 -10 -10 -9 -9 -8 -7 -7 -7 -7 -7 -6 ------- Run | Yrd Mat Min Mat Min Mat Fac Was Fac Low Dat Pro Slots Evolved 6 | . . . 2 . 2 2 . . . . . Power . | . . . . . . . . . . . . Propulsion 2 | . . . 1 . 1 . . . . . . Utility 4 | . . . 1 . 1 2 . . . . . Weapon . | . . . . . . . . . . . . Parts Attached 83 | 6 4 5 8 8 27 6 2 14 3 . . Power 8 | 1 . 1 1 2 2 1 . . . . . Engine 6 | 1 . 1 1 2 1 . . . . . . Core 2 | . . . . . 1 1 . . . . . Reactor . | . . . . . . . . . . . . Propulsion 27 | 2 . 1 3 3 12 . . 5 1 . . Treads 18 | 2 . 1 3 3 8 . . . 1 . . Leg 5 | . . . . . 4 . . 1 . . . Wheel . | . . . . . . . . . . . . Hover 4 | . . . . . . . . 4 . . . Flight . | . . . . . . . . . . . . Utility 22 | 1 1 1 2 2 5 4 . 5 1 . . Device 1 | . . . . . 1 . . . . . . Storage 2 | 1 . . 1 . . . . . . . . Processor 4 | . . . 1 1 2 . . . . . . Hackware 3 | . . . . . . 2 . 1 . . . Protection 12 | . 1 1 . 1 2 2 . 4 1 . . Artifact . | . . . . . . . . . . . . Weapon 26 | 2 3 2 2 1 8 1 2 4 1 . . Energy Gun 7 | 2 . . 2 . 1 . 1 1 . . . Energy Cannon . | . . . . . . . . . . . . Ballistic Gun 10 | . 3 1 . 1 5 . . . . . . Ballistic Cannon 6 | . . . . . 2 1 . 2 1 . . Launcher 2 | . . 1 . . . . . 1 . . . Special Weapon . | . . . . . . . . . . . . Impact Weapon 1 | . . . . . . . 1 . . . . Slashing Weapon . | . . . . . . . . . . . . Piercing Weapon . | . . . . . . . . . . . . Special Melee Weapon . | . . . . . . . . . . . . Unidentified Prototypes 1 | . . . 1 . . . . . . . . Parts Lost 36 | . 1 1 . 3 10 2 8 10 . . 1 Power . | . . . . . . . . . . . . Propulsion 15 | . . . . 1 7 . 3 4 . . . Utility 9 | . . . . 1 1 1 2 3 . . 1 Weapon 12 | . 1 1 . 1 2 1 3 3 . . . Highest Loss Streak 8 | . 1 1 . 2 2 1 8 7 . . 1 To Critical Strikes . | . . . . . . . . . . . . Average Backups 9 | 3 6 7 8 11 13 13 11 3 3 3 3 Power 1 | . 1 1 1 2 1 1 . . . . . Propulsion . | . . . . 1 . . 1 . 1 1 1 Utility 4 | . 3 3 3 3 6 7 5 . 1 1 1 Weapon 3 | 1 2 2 3 4 5 4 3 2 1 1 1 Tool/Special . | . . . . . . . . . . . . Unused Backups 13 | . . 1 . . 3 . 7 . . . 2 Power 1 | . . . . . . . 1 . . . . Propulsion 2 | . . . . . . . 1 . . . 1 Utility 6 | . . 1 . . . . 4 . . . 1 Weapon 4 | . . . . . 3 . 1 . . . . Tool/Special . | . . . . . . . . . . . . Average Slot Usage (%) 86 | . 98 99 98 93 86 93 72 57 31 32 30 Engine 7 | . 14 14 11 11 3 . . . . . . Core 2 | . . . . . 5 7 4 . . . . Treads 21 | . 28 28 32 31 25 . . . 5 7 7 Leg 4 | . . . . . . 30 21 . . . . Hover 1 | . . . . . . . . 23 . . . Storage 9 | . 14 14 11 11 9 7 4 . . . . Processor 6 | . . . 10 3 13 15 11 . . . . Hackware 1 | . . . . . . 7 5 6 7 7 6 Protection 11 | . 12 14 11 13 7 8 10 14 12 15 15 Energy Gun 3 | . 2 . 8 17 2 . . . . . . Ballistic Gun 12 | . 24 26 13 4 12 . . . . . . Ballistic Cannon 3 | . . . . . 2 14 10 10 4 2 . Peak Build Rating 41 | 6 11 11 17 18 33 41 41 34 15 15 15 Average Rating 19 | 3 10 10 14 15 23 37 29 26 13 12 12 On Entrance 14 | . 6 11 11 17 14 33 41 1 7 15 12 Naked Turns 37 | . . . . . . . 27 10 . . . Heaviest Build 47 | 14 21 21 36 43 41 47 47 19 9 9 4 Greatest Support 92 | 40 40 40 60 60 92 48 48 36 23 23 23 Greatest Overweight (x) 3 | 2 . . . . 3 . . 3 . . . Average Overweight (x) . | . . . . . . . . . . . . Largest Inventory Capacity 15 | 8 8 8 15 15 15 15 15 5 5 5 5 Average Capacity 10 | 6 8 8 9 15 15 15 11 5 5 5 5 Most Carried 15 | 5 8 8 14 14 15 15 15 5 5 4 4 Average Carried 9 | 3 6 7 8 11 14 13 11 3 3 3 3 Final Capacity 15 | 8 8 8 15 15 15 15 5 5 5 5 5 Final Carried 15 | 2 8 8 14 9 15 15 5 4 3 4 3 Class Distribution -------------------- 94% | Mutant 3% | Hacker-Mutant Dominant Class ---------------- Mutant | -10/Materials Mutant | -10/Mines Mutant | -9/Materials Mutant | -9/Mines Mutant | -8/Materials Mutant | -7/Factory Mutant | -7/Waste Mutant | -7/Factory Mutant | -7/Lower Caves Mutant | -7/Data Miner Mutant | -6/Proximity Caves Resources | -11 -10 -10 -9 -9 -8 -7 -7 -7 -7 -7 -6 ----------- Run | Yrd Mat Min Mat Min Mat Fac Was Fac Low Dat Pro Matter Collected 3095 | 233 181 377 392 119 1113 353 157 121 49 . . Remotely . | . . . . . . . . . . . . Salvage Created 3524 | . 128 372 563 295 1798 309 . 59 . . . Parts 209 | . 17 19 33 10 102 21 . 7 . . . Haulers Intercepted 4 | . . . 2 . 2 . . . . . . Recyclers Shooed 2 | . . . . . 2 . . . . . . Parts Field Recycled . | . . . . . . . . . . . . Retrieved Matter . | . . . . . . . . . . . . Parts Self-Destructed . | . . . . . . . . . . . . Prevented . | . . . . . . . . . . . . Kills | -11 -10 -10 -9 -9 -8 -7 -7 -7 -7 -7 -6 ------- Run | Yrd Mat Min Mat Min Mat Fac Was Fac Low Dat Pro Combat Hostiles Destroyed 98 | . 4 11 16 12 43 9 . 3 . . . Guns 80 | . 4 11 16 12 37 . . . . . . Cannons 15 | . . . . . 6 9 . . . . . AOE 3 | . . . . . . . . 3 . . . Classes Destroyed 16 | . 4 1 3 2 6 . . . . . . Worker 2 | . . . . 1 . . . 1 . . . Builder 2 | . . . . . 1 . . 1 . . . Hauler 4 | . . . 2 . 2 . . . . . . Recycler 3 | . . . . . 3 . . . . . . Operator 5 | . 2 . 1 . 1 1 . . . . . Watcher 6 | . 2 . 2 . 1 1 . . . . . Swarmer 26 | . 3 . 10 . 10 3 . . . . . Grunt 35 | . 1 9 4 3 15 1 . 2 . . . Brawler 3 | . . . 1 . 2 . . . . . . Duelist 3 | . . . . . 2 . . 1 . . . Protector 1 | . . . . . 1 . . . . . . Sentry 15 | . . . 1 . 10 4 . . . . . Demolisher 2 | . . . . 2 . . . . . . . Specialist 2 | . . . . . 2 . . . . . . Hunter 2 | . . . . . 1 1 . . . . . Assembled 9 | . . 2 . 7 . . . . . . . Best Kill Streak 5 | . 3 4 5 4 5 2 . 5 . . . Combat Bots Only 4 | . 3 4 4 4 4 2 . 3 . . . Max Kills in Single Turn 2 | . 1 2 1 1 2 1 . 2 . . . Gunslinging 1 | . . . . . 1 . . . . . . Exploded 2 | . . . . . . . . 2 . . . Melee . | . . . . . . . . . . . . Uniques/NPCs Destroyed . | . . . . . . . . . . . . Combat | -11 -10 -10 -9 -9 -8 -7 -7 -7 -7 -7 -6 -------- Run | Yrd Mat Min Mat Min Mat Fac Was Fac Low Dat Pro Hostile Shots Fired 709 | . 18 29 59 40 218 100 7 214 . . 24 Missed 212 | . 4 7 12 7 52 31 . 89 . . 10 Hits 497 | . 14 22 47 33 166 69 7 125 . . 14 Melee 29 | . . 2 . 19 1 . 7 . . . . Projectile 468 | . 14 20 47 14 165 69 . 125 . . 14 AOE 4 | . . . . 3 . . . 1 . . . Critical Strikes 11 | . . . 2 2 2 . 3 2 . . . Damage Taken 7284 | . 400 662 433 764 2454 624 325 1352 . . 270 Core 1404 | . 17 202 19 187 278 55 199 334 . . 113 Absorbed by Shields . | . . . . . . . . . . . . Redirected to Shielding 150 | . . . . . . . . 101 . . 49 Regen/Repaired (Parts) 97 | . . . 97 . . . . . . . . Core Remaining (%) 52 | 100 . 12 . 48 49 . . . . . . Volleys Fired 349 | . 21 35 57 30 128 31 24 13 . . 10 Largest 2 | . 2 2 2 2 2 2 2 2 . . 1 Hottest 117 | . 46 53 112 112 93 74 117 92 . . 37 Shots Fired 671 | . 42 64 112 61 254 61 46 20 1 . 10 Gun 500 | . 42 50 110 61 227 1 3 6 . . . Cannon 152 | . . . . . 27 60 43 11 1 . 10 Launcher 19 | . . 14 2 . . . . 3 . . . Special . | . . . . . . . . . . . . Kinetic 535 | . 42 50 84 9 224 61 43 11 1 . 10 Thermal 111 | . . . 26 52 30 . 3 . . . . Explosive 19 | . . 14 2 . . . . 3 . . . Electromagnetic 6 | . . . . . . . . 6 . . . Robot Hit Streak 18 | . 8 7 18 6 18 10 14 4 . . 8 Robot Miss Streak 9 | . 5 3 3 4 9 3 1 2 . . 1 Penetration Max . | . . . . . . . . . . . . Secondary Targets 13 | . . 1 1 3 8 . . . . . . Max Gunslinging Chain 1 | . . 1 1 1 1 . . . . . . Shots Hit Robots 439 | . 23 23 68 39 191 38 36 13 . . 8 Core Hits 205 | . 9 15 24 21 101 18 8 9 . . . Critical Kills 3 | . . 1 . . 2 . . . . . . Critical Parts Destroyed 2 | . 1 . . . 1 . . . . . . Critical Strikes 17 | . 1 1 4 3 4 . 3 . . . 1 Burn 8 | . . . 4 3 1 . . . . . . Destroy 5 | . 1 1 . . 3 . . . . . . Blast 4 | . . . . . . . 3 . . . 1 Melee Attacks 1 | . . . . . . . 1 . . . . Impact 1 | . . . . . . . 1 . . . . Slashing . | . . . . . . . . . . . . Piercing . | . . . . . . . . . . . . Sneak Attacks . | . . . . . . . . . . . . Combat Hostiles . | . . . . . . . . . . . . Follow-up Attacks . | . . . . . . . . . . . . Damage Inflicted 9183 | . 397 382 1053 671 3796 904 1023 761 . . 196 Guns 5823 | . 397 382 1053 671 3193 17 94 16 . . . Cannons 2625 | . . . . . 499 887 876 167 . . 196 Explosions 645 | . . . . . 104 . . 541 . . . Melee 53 | . . . . . . . 53 . . . . Ramming 37 | . . . . . . . . 37 . . . Kinetic 7071 | . 397 382 799 49 3301 904 876 167 . . 196 Thermal 1361 | . . . 254 622 391 . 94 . . . . Explosive 645 | . . . . . 104 . . 541 . . . Electromagnetic 16 | . . . . . . . . 16 . . . Impact 53 | . . . . . . . 53 . . . . Slashing . | . . . . . . . . . . . . Piercing . | . . . . . . . . . . . . Highest Corruption 19 | . . 4 . 5 1 . 15 19 19 19 19 Average Corruption 12 | . . 4 . 4 1 . 11 15 19 19 19 Corruption Purged . | . . . . . . . . . . . . Corruption Blocked . | . . . . . . . . . . . . Effects 57 | . . 4 . 6 1 . 6 21 4 5 10 Message Errors 17 | . . 1 . 1 . . 3 5 1 3 3 Matter Fused 12 | . . . . 2 . . 2 4 1 1 2 Heat Flow Errors 7 | . . . . 2 1 . 1 2 . . 1 Energy Discharges 7 | . . 2 . . . . . 2 1 . 2 Parts Rejected 1 | . . . . . . . . 1 . . . Parts Fused 1 | . . . . . . . . . . 1 . Data Loss (minor) 3 | . . . . . . . . 3 . . . Data Loss (major) 3 | . . . . . . . . 2 . . 1 Misfires 2 | . . . . 1 . . . . 1 . . Alerts 1 | . . . . . . . . . . . 1 Misdirections 2 | . . . . . . . . 2 . . . Weapon Failures 1 | . . 1 . . . . . . . . . Overload Shots . | . . . . . . . . . . . . Overflow Damage 105 | . . . . . 72 22 . 11 . . . Projectiles 22 | . . . . . . 22 . . . . . Explosions 83 | . . . . . 72 . . 11 . . . Melee . | . . . . . . . . . . . . Knockbacks 8 | . . . . . 5 1 . 1 . . 1 Impact . | . . . . . . . . . . . . Kinetic 8 | . . . . . 5 1 . 1 . . 1 Secondary . | . . . . . . . . . . . . Self-Inflicted Damage 299 | . . 80 . . 77 . . 142 . . . Shots 8 | . . 4 . . 2 . . 2 . . . Rammed 8 | . . . . . . . . 8 . . . Targets Rammed 8 | . . . . . . . . 8 . . . Kicked . | . . . . . . . . . . . . Crushed . | . . . . . . . . . . . . Highest Temperature 512 | . 18 80 303 512 208 132 360 207 . . 219 Average Temperature 111 | . 13 20 112 206 58 30 153 46 . . 104 Received Heat Transfer 1687 | . 24 202 108 90 783 144 . 243 . . 93 Effects 10 | . . . . 8 . . 2 . . . . Shutdowns 2 | . . . . 2 . . . . . . . Energy Bleed 4 | . . . . 2 . . 2 . . . . Short Circuit 2 | . . . . 2 . . . . . . . Damage (minor) 1 | . . . . 1 . . . . . . . Damage (major) 1 | . . . . 1 . . . . . . . Siege Activations . | . . . . . . . . . . . . Martial Activations . | . . . . . . . . . . . . Shielding Activations . | . . . . . . . . . . . . Robots Disrupted . | . . . . . . . . . . . . Combat Hostiles . | . . . . . . . . . . . . Robots Corrupted . | . . . . . . . . . . . . Combat Hostiles . | . . . . . . . . . . . . Parts Fried . | . . . . . . . . . . . . Impact Corruptions . | . . . . . . . . . . . . Robots Melted . | . . . . . . . . . . . . Combat Hostiles . | . . . . . . . . . . . . Parts Melted 5 | . . . 4 1 . . . . . . . Heat Transferred 3592 | . . . 851 1591 925 . 225 . . . . Parts Sabotaged . | . . . . . . . . . . . . Parts Stolen . | . . . . . . . . . . . . Parts Stripped . | . . . . . . . . . . . . Power Chain Reactions . | . . . . . . . . . . . . Alert | -11 -10 -10 -9 -9 -8 -7 -7 -7 -7 -7 -6 ------- Run | Yrd Mat Min Mat Min Mat Fac Was Fac Low Dat Pro Maximum Alert Level 2 | . . . 1 . 2 1 . . . . . Low Security (%) 80 | 100 100 100 92 100 37 72 100 100 . . . Level 1 12 | . . . 7 . 32 27 . . . . . Level 2 7 | . . . . . 29 . . . . . . Level 3 . | . . . . . . . . . . . . Level 4 . | . . . . . . . . . . . . Level 5 . | . . . . . . . . . . . . High Security . | . . . . . . . . . . . . Max Security . | . . . . . . . . . . . . Peak Influence 686 | . 74 88 214 112 686 338 32 154 . . . Initial 305 | . . 25 24 62 . 305 31 . . . . Average 120 | . 11 22 120 32 306 109 8 70 . . . Influence Increases 2958 | . 185 260 483 125 1293 347 1 219 . . 45 Destroy 0b10 Robot/C 1780 | . 80 180 320 100 860 180 . 60 . . . Destroy 0b10 Robot/NC 115 | . 20 . 25 5 45 10 . 10 . . . Destroy Leader 420 | . 24 10 78 20 216 62 . 10 . . . Allied During Kill 5 | . . . . . 5 . . . . . . Successful Hack 117 | . 60 . 12 . 3 18 . 24 . . . Disable Machine 225 | . . 30 30 . 105 . . 60 . . . Destroy Structure 116 | . 1 40 18 . 29 2 1 25 . . . Partial Spotted 15 | . . . . . . 15 . . . . . Lose Combat Pursuer 165 | . . . . . 30 60 . 30 . . 45 Influence Decreases 2943 | . 119 264 384 286 622 928 91 219 . . 30 Entered New Map 603 | . . 41 38 99 . 366 59 . . . . Time Decay 1801 | . 115 219 346 167 496 254 30 154 . . 20 Lost Part 213 | . 4 4 . 20 100 10 . 65 . . 10 Lost Ally 28 | . . . . . 26 . 2 . . . . Purge Threat 298 | . . . . . . 298 . . . . . Squads Dispatched 15 | . 1 . 2 . 8 3 . 1 . . . Investigation 2 | . . . 1 . . 1 . . . . . Extermination 2 | . . . . . . 1 . 1 . . . Reinforcement 8 | . 1 . 1 . 5 1 . . . . . Assault 1 | . . . . . 1 . . . . . . Garrison 2 | . . . . . 2 . . . . . . Intercept . | . . . . . . . . . . . . Searches Triggered . | . . . . . . . . . . . . Construction Impeded 1 | . . . . . 1 . . . . . . Haulers Reinforced . | . . . . . . . . . . . . Active Scanning Responses . | . . . . . . . . . . . . Cargo Convoy Interrupts . | . . . . . . . . . . . . Stealth | -11 -10 -10 -9 -9 -8 -7 -7 -7 -7 -7 -6 --------- Run | Yrd Mat Min Mat Min Mat Fac Was Fac Low Dat Pro Distress Signals 12 | . . 1 2 1 5 3 . . . . . Communications Jammed . | . . . . . . . . . . . . Distress Signals . | . . . . . . . . . . . . Times Spotted 166 | . 16 11 26 15 63 17 5 9 . . 4 Peak Tracking Total 10 | . 3 4 7 10 6 4 3 4 . . 3 Tactical Retreats 8 | . . . . 1 2 2 . 2 . . 1 Traps | -11 -10 -10 -9 -9 -8 -7 -7 -7 -7 -7 -6 ------- Run | Yrd Mat Min Mat Min Mat Fac Was Fac Low Dat Pro Traps Triggered 5 | . 2 . . . 2 1 . . . . . Indirectly . | . . . . . . . . . . . . Trap Hack Attempts . | . . . . . . . . . . . . Triggered . | . . . . . . . . . . . . Disarmed . | . . . . . . . . . . . . Reprogrammed . | . . . . . . . . . . . . Reused . | . . . . . . . . . . . . Traps Extracted . | . . . . . . . . . . . . Installed . | . . . . . . . . . . . . Triggered . | . . . . . . . . . . . . Machines | -11 -10 -10 -9 -9 -8 -7 -7 -7 -7 -7 -6 ---------- Run | Yrd Mat Min Mat Min Mat Fac Was Fac Low Dat Pro Machines Disabled 15 | . . 2 2 . 7 . . 4 . . . Max in Single Turn 3 | . . 1 1 . 3 . . 2 . . . Garrison Access 1 | . . . . . 1 . . . . . . Machines Repaired . | . . . . . . . . . . . . Machines Dismantled . | . . . . . . . . . . . . Machines Sabotaged . | . . . . . . . . . . . . Overloaded Fab Kills . | . . . . . . . . . . . . Hacking | -11 -10 -10 -9 -9 -8 -7 -7 -7 -7 -7 -6 --------- Run | Yrd Mat Min Mat Min Mat Fac Was Fac Low Dat Pro Machines Accessed 31 | . 4 . 5 . 6 10 . 2 . 4 . Terminals 19 | . 4 . 4 . 4 6 . 1 . . . Fabricators . | . . . . . . . . . . . . Repair Stations 2 | . . . 1 . . 1 . . . . . Recycling Units 2 | . . . . . . 2 . . . . . Scanalyzers 2 | . . . . . 1 . . 1 . . . Garrison Access 2 | . . . . . 1 1 . . . . . Total Hacks 87 | . 11 . 11 . 14 18 . 4 . 29 . Successful 57 | . 5 . 5 . 7 8 . 3 . 29 . Failed 30 | . 6 . 6 . 7 10 . 1 . . . Catastrophic 10 | . 1 . 1 . 3 5 . . . . . Database Lockouts . | . . . . . . . . . . . . Manual 23 | . 2 . 3 . 5 11 . 2 . . . Terminals 38 | . 11 . 9 . 5 11 . 2 . . . Fabricators . | . . . . . . . . . . . . Repair Stations 4 | . . . 2 . . 2 . . . . . Recycling Units 3 | . . . . . . 3 . . . . . Scanalyzers 10 | . . . . . 8 . . 2 . . . Garrison Access 3 | . . . . . 1 2 . . . . . Terminal Hacks 41 | . 4 . 3 . . 4 . 1 . 29 . Record 11 | . . . . . . . . . . 11 . Part Schematic 10 | . . . . . . . . . . 10 . Robot Schematic 5 | . . . . . . . . . . 5 . Robot Analysis 1 | . 1 . . . . . . . . . . Prototype ID Bank 5 | . 1 . 1 . . . . . . 3 . Branch Access Points 3 | . 1 . 1 . . 1 . . . . . Terminal Index 1 | . . . . . . . . 1 . . . Unreport Threat 2 | . . . . . . 2 . . . . . Locate Traps 3 | . 1 . 1 . . 1 . . . . . Fabricator Hacks . | . . . . . . . . . . . . Repair Station Hacks 3 | . . . 2 . . 1 . . . . . Scan Component 2 | . . . 1 . . 1 . . . . . Repair 1 | . . . 1 . . . . . . . . Recycling Unit Hacks 2 | . . . . . . 2 . . . . . Report Inventory 2 | . . . . . . 2 . . . . . Scanalyzer 8 | . . . . . 6 . . 2 . . . Insert Component 4 | . . . . . 3 . . 1 . . . Analyze 4 | . . . . . 3 . . 1 . . . Garrison Access Hacks 1 | . . . . . 1 . . . . . . Seal Access 1 | . . . . . 1 . . . . . . Unauthorized Hacks 2 | . 1 . . . . 1 . . . . . Terminals 1 | . 1 . . . . . . . . . . Assimilate 1 | . 1 . . . . . . . . . . Fabricators . | . . . . . . . . . . . . Repair Stations . | . . . . . . . . . . . . Recycling Units 1 | . . . . . . 1 . . . . . Monitor 1 | . . . . . . 1 . . . . . Scanalyzers . | . . . . . . . . . . . . Garrison Access . | . . . . . . . . . . . . Data Cores Recovered . | . . . . . . . . . . . . Used . | . . . . . . . . . . . . Hacking Detections 23 | . 4 . 5 . 5 8 . 1 . . . Full Trace Events 3 | . 1 . 1 . . 1 . . . . . Feedback Events . | . . . . . . . . . . . . Feedback Blocked . | . . . . . . . . . . . . Robot Schematics Acquired 5 | . . . . . . . . . . 5 . Robots Built . | . . . . . . . . . . . . Authchips . | . . . . . . . . . . . . Time . | . . . . . . . . . . . . Total Robot Build Rating . | . . . . . . . . . . . . Part Schematics Acquired 14 | . . . . . 3 . . 1 . 10 . Parts Built . | . . . . . . . . . . . . Authchips . | . . . . . . . . . . . . Time . | . . . . . . . . . . . . Total Part Build Rating . | . . . . . . . . . . . . Parts Repaired 1 | . . . 1 . . . . . . . . Time 26 | . . . 26 . . . . . . . . Parts Recycled . | . . . . . . . . . . . . Recycled Matter . | . . . . . . . . . . . . Retrieved Matter . | . . . . . . . . . . . . Retrieved Components . | . . . . . . . . . . . . Parts Scanalyzed 4 | . . . . . 3 . . 1 . . . Part Schematics Acquired 4 | . . . . . 3 . . 1 . . . Parts Damaged . | . . . . . . . . . . . . Bothacking | -11 -10 -10 -9 -9 -8 -7 -7 -7 -7 -7 -6 ------------ Run | Yrd Mat Min Mat Min Mat Fac Was Fac Low Dat Pro Used RIF Installer . | . . . . . . . . . . . . Robots Hacked . | . . . . . . . . . . . . Non-combat . | . . . . . . . . . . . . Combat . | . . . . . . . . . . . . Robot Hacks Applied . | . . . . . . . . . . . . Relay Couplers Released . | . . . . . . . . . . . . Fabnet Peak Effective % . | . . . . . . . . . . . . Robots Rewired . | . . . . . . . . . . . . Allies Hacked . | . . . . . . . . . . . . Hacks Repelled . | . . . . . . . . . . . . Allies | -11 -10 -10 -9 -9 -8 -7 -7 -7 -7 -7 -6 -------- Run | Yrd Mat Min Mat Min Mat Fac Was Fac Low Dat Pro Total Allies 5 | . . . . 3 . . 1 . . . 1 Largest Group 3 | . . . . 3 3 . 1 . . . 1 Highest-Rated Group 96 | . . . . 40 40 . 31 . . . 96 Highest-Rated Ally 96 | . . . . 16 16 . 31 . . . 96 Total Orders . | . . . . . . . . . . . . Ally Attacks 57 | . . . . . 19 . 29 . . . 9 Total Damage 988 | . . . . . 224 . 382 . . . 382 Kills 3 | . . . . . 1 . 2 . . . . Allies Corrupted . | . . . . . . . . . . . . Allies Melted . | . . . . . . . . . . . . Intel | -11 -10 -10 -9 -9 -8 -7 -7 -7 -7 -7 -6 ------- Run | Yrd Mat Min Mat Min Mat Fac Was Fac Low Dat Pro Active Infowar (turns) 1814 | . . . . . 888 806 120 . . . . Optics 1814 | . . . . . 888 806 120 . . . . Robot Analysis Total 1 | . 1 . . . . . . . . . . Derelict Logs Recovered 3 | . . 2 . . . . . . . . 1 Drone Launches . | . . . . . . . . . . . . Drone Recoveries . | . . . . . . . . . . . . Exploration | -11 -10 -10 -9 -9 -8 -7 -7 -7 -7 -7 -6 ------------- Run | Yrd Mat Min Mat Min Mat Fac Was Fac Low Dat Pro Turns Passed 6869 | 71 597 1244 983 544 1569 806 158 432 87 134 244 Spaces Moved 3513 | 51 285 576 390 230 616 603 122 357 64 84 135 Core 164 | 28 . . . . . . 75 43 18 . . Treads 2352 | 23 285 576 390 230 583 . . . 46 84 135 Legs 714 | . . . . . 33 603 47 31 . . . Wheels . | . . . . . . . . . . . . Hover 283 | . . . . . . . . 283 . . . Flight . | . . . . . . . . . . . . Fastest Speed 48 | 50 160 160 160 160 90 90 50 48 50 160 160 Average Speed 136 | 117 160 160 160 160 162 90 65 88 129 160 160 Slowest Speed 360 | 160 160 160 160 160 360 90 90 200 160 160 160 Overloaded Moves . | . . . . . . . . . . . . Propulsion Burnouts . | . . . . . . . . . . . . Robots Hopped . | . . . . . . . . . . . . Potential Cave-ins 4 | . . 4 . . . . . . . . . Cave-ins Triggered 1 | . . 1 . . . . . . . . . Exploration Rate (%) 42 | 4 65 90 34 61 65 21 65 10 12 69 18 Regions Visited 11 Branch Regions 5 Pre-discovered Areas 1 | . . . . . . . . . . 1 . Known Exits Taken 3 | . 1 . 1 . . . . 1 . . . Unknown Exits Taken 6 | 1 . 1 . 1 1 . . . 1 1 . Scrap Searched 4 | . . 1 . 2 . . . . 1 . . Spaces Dug 9 | . . 9 . . . . . . . . . Terrain Destroyed 138 | . . 53 16 . 42 . 1 25 . . 1 Melee . | . . . . . . . . . . . . Projectile 4 | . . . . . 2 . 1 . . . 1 AOE 134 | . . 53 16 . 40 . . 25 . . . Terrain Rammed . | . . . . . . . . . . . . Walls Destroyed . | . . . . . . . . . . . . Machines Disabled . | . . . . . . . . . . . . Actions | -11 -10 -10 -9 -9 -8 -7 -7 -7 -7 -7 -6 --------- Run | Yrd Mat Min Mat Min Mat Fac Was Fac Low Dat Pro Total 4915 | 61 385 833 639 348 936 806 150 450 69 84 154 Wait 846 | . 65 208 164 70 119 161 1 49 1 . 8 Move 3503 | 50 284 574 389 229 615 603 121 357 63 83 135 Hop . | . . . . . . . . . . . . Pick Up 68 | 5 9 3 10 4 25 3 . 7 2 . . Fast Attach 24 | 3 1 . 2 . 9 1 2 6 . . . Attach 44 | 3 3 1 3 6 12 3 1 8 3 . 1 Detach 1 | . . . . . . . . . . 1 . Swap 29 | . . 7 7 3 9 2 . 1 . . . Drop 41 | . 2 4 7 6 19 2 . 1 . . . Fire 349 | . 21 35 57 30 128 31 24 13 . . 10 Melee 1 | . . . . . . . 1 . . . . Ram 8 | . . . . . . . . 8 . . . Kick . | . . . . . . . . . . . . Crush . | . . . . . . . . . . . . Escape Stasis 1 | . . 1 . . . . . . . . . Rewire . | . . . . . . . . . . . . Trap . | . . . . . . . . . . . . Miscellaneous . | . . . . . . . . . . . . Route ------- -11/Scrapyard -10/Materials (discovered 3 exits: *Mat / *Min x2) -10/Mines (discovered 2 exits: *Mat x2) -9/Materials (discovered 2 exits: *Min / Sto) -9/Mines -8/Materials -7/Factory (discovered 3 exits: [*Fac] / *Low x2) -7/Waste -7/Factory -7/Lower Caves -7/Data Miner -6/Proximity Caves History --------- Turn | Location | Event 25 | -11/Scrapyard | Discovered new exit (range 15) 72 | -11/Scrapyard | Entered Materials 167 | -10/Materials | Identified exit to Mines 307 | -10/Materials | Build established: Mutant 392 | -10/Materials | Discovered new exit (range 16) 669 | -10/Materials | Entered Mines 684 | -10/Mines | Learned Materials emergency access door positions 813 | -10/Mines | Joined a pair of Derelicts in attacking an 0b10 outpost 876 | -10/Mines | Learned 2 Materials zone layouts 909 | -10/Mines | YI-UF0 nonchalantly dropped a Grenade Launcher on the ground 950 | -10/Mines | Excavation squad dispatched 950 | -10/Mines | A large section of the Mines collapsed 1200 | -10/Mines | Excavation squad dispatched 1245 | -10/Mines | Found a hidden stash of uninstalled traps 1450 | -10/Mines | Excavation squad dispatched 1477 | -10/Mines | Discovered new exit (range 5) 1477 | -10/Mines | Discovered new exit (range 8) 1775 | -10/Mines | Crushed by falling debris 1776 | -10/Mines | Core integrity fell below 50% 1776 | -10/Mines | Core integrity fell below 20% 1913 | -10/Mines | Entered Materials 1913 | -9/Materials | Evolved 2 slots: Propulsion x1, Utility x1 1965 | -9/Materials | Repaired Lgt. Treads 2100 | -9/Materials | Identified exit to Mines 2100 | -9/Materials | Identified exit to Storage 2896 | -9/Materials | Entered Mines 2920 | -9/Mines | Met a Derelict bent on vengeance 3120 | -9/Mines | Assembled infested the area 3120 | -9/Mines | Found DCF Scrap (13 items) 3243 | -9/Mines | Core integrity fell below 50% 3404 | -9/Mines | Discovered new exit (range 14) 3431 | -9/Mines | Assisted by bots powering up and referring to "LRC-V3" 3440 | -9/Mines | Entered Materials 3440 | -8/Materials | Accompanied by 3 allies 3440 | -8/Materials | Evolved 2 slots: Propulsion x1, Utility x1 3580 | -8/Materials | Garrison activated, responded to threat 3599 | -8/Materials | Lost 3 allies 4640 | -8/Materials | First assault squad dispatched 4729 | -8/Materials | Core integrity fell below 50% 4899 | -8/Materials | Discovered new exit (range 19) 5009 | -8/Materials | Entered Factory 5009 | -7/Factory | Evolved 2 slots: Utility x2 5437 | -7/Factory | Identified exit to Lower Caves 5798 | -7/Factory | Discovered new exit (range 5) 5815 | -7/Factory | Sucked down chute 5815 | -7/Factory | Entered Waste 5816 | -7/Waste | Met a frightened Derelict 5819 | -7/Waste | Spotted C-40 Crusher 5830 | -7/Waste | EMP discharged 5830 | -7/Waste | System corruption reached 10% 5835 | -7/Waste | Spotted C-40 Crusher 5841 | -7/Waste | Allies destroyed C-40 Crusher 5850 | -7/Waste | Allies destroyed C-40 Crusher 5855 | -7/Waste | Spotted C-40 Crusher 5920 | -7/Waste | Crushed by Compactor (1 part destroyed, 1 dropped) 5923 | -7/Waste | Crushed by Compactor (1 part destroyed, 2 dropped) 5926 | -7/Waste | Crushed by Compactor (1 part destroyed, 1 dropped) 5929 | -7/Waste | Crushed by Compactor (1 part destroyed, 1 dropped) 5930 | -7/Waste | EMP discharged 5932 | -7/Waste | Crushed by Compactor (1 part destroyed, 1 dropped) 5935 | -7/Waste | Crushed by Compactor (1 part destroyed, 2 dropped) 5939 | -7/Waste | Spotted C-40 Crusher 5946 | -7/Waste | Crushed by Compactor (1 part destroyed) 5953 | -7/Waste | Spotted C-40 Crusher 5969 | -7/Waste | Discovered new exit (range 10) 5973 | -7/Waste | Entered Factory 5977 | -7/Factory | Lost 8 parts (3n2u3w) 6345 | -7/Factory | Core integrity fell below 50% 6399 | -7/Factory | Discovered exit to Lower Caves (range 12) 6403 | -7/Factory | Core integrity fell below 20% 6405 | -7/Factory | Entered Lower Caves 6420 | -7/Lower Caves | Lost 7 parts (4n1u2w) 6484 | -7/Lower Caves | A Derelict revealed a hidden shortcut to meet someone special 6492 | -7/Lower Caves | Entered Data Miner 6492 | -7/Data Miner | Discovered new exit (range 6) 6523 | -7/Data Miner | Met Data Miner 6559 | -7/Data Miner | Learned location of Section 7 (-2) 6559 | -7/Data Miner | Acquired the access code to Warlord's prototype stash 6586 | -7/Data Miner | Received God Mode back door access code from Data Miner 6626 | -7/Data Miner | Entered Proximity Caves 6658 | -6/Proximity Caves | Spotted B-75 Beast 6660 | -6/Proximity Caves | Escorted by Enhanced Grunt 6870 | -6/Proximity Caves | Destroyed by G-67 Veteran with Field Laser Last Messages --------------- System corrupted: Imp. Utility Shielding fused. LOCATION=UNKNOWN GOAL=ESCAPE Acquired derelict log, extracted data. Data stored: Lower Caves entrances (x1). System corrupted: Energy discharge (-35). System corrupted: Matter fused (-9). Enhanced Grunt: "Protecting LRC-V3." 6YT FK E0 System corrupted: Heat flow error (+252). System corrupted: Matter fused (-6). System corrupted: IFF burst signal emitted. 9VAROR8A R1NED KZJYBVWOQYJGNLGYQI%TMJL3N G-67 Veteran knocked back. System corrupted: Substantial component data lost. Hacking Suite destroyed. G-50 Soldier suffers critical hit (Blast). Map ----- +----------------------------------------------------+ | ?????????????????????????????????????????????????? | | ?????????????????????????????????????????????????? | | ?????????????????????????????????????????????????? | | ?????????????????????????????????????????????????? | | ?????????????????????????????????????????????????? | | ?????????????????????????????????????????????????? | | ?????????????????????????????????????????????????? | | ?????????????????????????????????????????????????? | | ???????????????????????????????? ?????????????? | | ??????????????????????????????? ????????????? | | ??????????????????????????????? ????????????? | | ???????????????????????????????# ????????????? | | ???????????????????????????????# ????????????? | | ???????????????????????????????? ?????????????? | | ???????????????????????????????? ?????????????? | | ???????????????????????????????? ?????????????? | | ???????????????????????????????? ?????????????? | | ????????????????????????????????# #?????????????? | | ??????????????????###???????????# #?????????????? | | ??????????????????# ???????????# ####??????????? | | ??????????????????? ??????????# ? #??????????? | | ???????????? ?????? ?????????# #? #??????????? | | ?????????????? # ??# ??###???# #? #??????????? | | ????????????? # ###g##?## ## #??????????? | | ????????????????????# g%### ###?????????? | | ?#######????????????## @%# #####?????? | | ## #?????????????## #### ### # ####??? | | # # #??????????????###???# ## # #??? | | #?????????????######### ### # ## #??? | | #?????????????## # ## ## # ? ###??? | | ##??#####????### # ?????? | | #### ##?### # #???? | | # ### # ## # ### ##???? | | # ## # # # ###??####????? | | ## ##### # ## # #### # #???????????? | | ?###???##################??# # # #???????????? | | ??????????????????????????? #### ?#???????????? | | ??????????????????????????? ???# ##????????????? | | ?????????????????????????? ###??# #?????????????? | | ??????????????????????????#????? #?????????????? | | ???????????????????????????????? #?????????????? | | ????????????????????????????????? ?????????????? | | ????????????????????????????????? ?????????????? | | ?????????????????????????????????? ?????????????? | | ?????????????????????????????????? ?????????????? | | ?????????????????????????????????? ??????????????? | | ?????????????????????????????????????????????????? | | ?????????????????????????????????????????????????? | | ?????????????????????????????????????????????????? | | ?????????????????????????????????????????????????? | +----------------------------------------------------+ Best States ------------- Heat Dissipation 45 Energy Generation 15 Energy Capacity 265 Matter Stores 300 Matter Capacity 300 Sight Range 20 Terrain Scan Density 10 Armor Coverage 375 Resistance: EM 15 Propulsion Shielding 66 Utility Shielding 66 Weapon Shielding 66 Evasion (%) 57 Targeting Accuracy 6 Recoil Reduction 4 Offensive Hacking 20 Item Schematics ----------------- Hacking Suite | -8/Materials | Scanalyzed Lgt. Nuclear Core | -8/Materials | Scanalyzed Rocket Launcher | -8/Materials | Scanalyzed Imp. Propulsion Shielding | -7/Factory | Scanalyzed Combat Drone Bay | -7/Data Miner | Free Lgt. Regenerative Plating | -7/Data Miner | Free Biomechanical Wings | -7/Data Miner | Free Gravity Neutralizer | -7/Data Miner | Free Prc. Rocket Launcher | -7/Data Miner | Free Nuclear Pulse Array | -7/Data Miner | Free Adv. Trap Extractor | -7/Data Miner | Free Tesla Rifle | -7/Data Miner | Free Phase Cannon | -7/Data Miner | Free Adv. Shield Generator | -7/Data Miner | Free Robot Schematics ------------------ G-47 Trooper | -7/Data Miner | Free S-27 Virus | -7/Data Miner | Free R-10 Processor | -7/Data Miner | Free A-15 Conveyor | -7/Data Miner | Free B-60 Warrior | -7/Data Miner | Free Fabricated ------------ Nothing Repaired ---------- Lgt. Treads | 30% | -9/Materials Alien Tech Used ----------------- None Achievements -------------- None Challenges ------------ None Game ------ Seed PitchforkSpacefoldSuit Manual? 0 Play Time 00:55:12 Cumulative 53.2 hours Start 2025.06.08 @ 15:05:54 End 2025.06.08 @ 16:03:05 Sessions 1 Manual Loads 0 Difficulty Rogue Special Mode None Game No. 51 Rogue 51 Adventurer 0 Explorer 0 Win Type - Total 1 Types 1/0/0/0/0/0/0/0/0/0 Lore% 36 Gallery% 39 Achievement% 41 Wizard Run 0 Options --------- Layout 1 ASCII 0 Keyboard 0 Movement Mouse Keybinds 0 Fullscreen 2 Font 24/Smallcaps Map View 50x35 Zoom Use 0% Tactical HUD 0 Map Filters NONE Filters NONE Steam 1 RUN: 9f18de93-d913-463d-86ca-d7f1d081ea10